[Event "Titled Tuesday Blitz May 10 Early 2022"]
[White "Lamaze, Simon"]
[Black "Polanco Nunez, Yoel Estarling"]
[WhiteFideId "36069264"]
[BlackFideId "6401783"]
[WhiteElo "1999"]
[BlackElo "2132"]
[Result "0-1"]
[Round "06"]
[TimeControl "180+1"]
[Date "2022.05.11"]
[WhiteClock "0:00:12"]
[BlackClock "0:00:19"]

1. d4 {[%clk 0:02:56]}  Nf6 {[%clk 0:02:59]} 2. c4 {[%clk 0:02:56]}  e6 {[%clk 0:03:00]} 3. Nc3 {[%clk 0:02:51]}  Bb4 {[%clk 0:03:00]} 4. e3 {[%clk 0:02:51]}  O-O {[%clk 0:02:58]} 5. Ne2 {[%clk 0:02:52]}  c6 {[%clk 0:02:55]} 6. a3 {[%clk 0:02:51]}  Ba5 {[%clk 0:02:56]} 7. b4 {[%clk 0:02:52]}  Bc7 {[%clk 0:02:56]} 8. e4 {[%clk 0:02:52]}  d5 {[%clk 0:02:56]} 9. e5 {[%clk 0:02:53]}  Nfd7 {[%clk 0:02:49]} 10. Nf4 {[%clk 0:02:53]}  Qe7 {[%clk 0:02:28]} 11. Qc2 {[%clk 0:02:21]}  f6 {[%clk 0:02:26]} 12. cxd5 {[%clk 0:02:16]}  fxe5 {[%clk 0:02:21]} 13. Nxe6 {[%clk 0:02:15]}  exd4 {[%clk 0:02:16]} 14. Bc4 {[%clk 0:01:40]}  Nb6 {[%clk 0:02:09]} 15. Bg5 {[%clk 0:01:22]}  Qe8 {[%clk 0:02:01]} 16. Bb3 {[%clk 0:01:15]}  dxc3 {[%clk 0:01:41]} 17. O-O {[%clk 0:01:12]}  Bxe6 {[%clk 0:01:39]} 18. dxe6 {[%clk 0:01:12]}  Nd5 {[%clk 0:01:31]} 19. Rae1 {[%clk 0:01:11]}  Qh5 {[%clk 0:01:23]} 20. f4 {[%clk 0:01:04]}  h6 {[%clk 0:01:13]} 21. e7 {[%clk 0:00:46]}  Re8 {[%clk 0:01:10]} 22. Qf5 {[%clk 0:00:35]}  Qf7 {[%clk 0:01:02]} 23. Qxf7+ {[%clk 0:00:31]}  Kxf7 {[%clk 0:01:01]} 24. Bh4 {[%clk 0:00:31]}  Nd7 {[%clk 0:00:54]} 25. g4 {[%clk 0:00:28]}  Bd6 {[%clk 0:00:39]} 26. g5 {[%clk 0:00:19]}  Bxe7 {[%clk 0:00:36]} 27. Bc2 {[%clk 0:00:15]}  Bd6 {[%clk 0:00:28]} 28. Bg3 {[%clk 0:00:15]}  Rxe1 {[%clk 0:00:21]} 29. Rxe1 {[%clk 0:00:16]}  Bxf4 {[%clk 0:00:20]} 30. Rf1 {[%clk 0:00:11]}  hxg5 {[%clk 0:00:20]} 31. h4 {[%clk 0:00:12]}  Kg8 {[%clk 0:00:19]} 32. Be1 {[%clk 0:00:12]}  Ne3 {[%clk 0:00:19]} 0-1


[Site "https://www.chess.com"]

[Event "Titled Tuesday Blitz May 10 Early 2022"]
[White "Lauridsen, Jesper Morch"]
[Black "Buscar, Michael"]
[WhiteFideId "1401890"]
[BlackFideId "2603616"]
[WhiteElo "2226"]
[BlackElo "2010"]
[Result "0-1"]
[Round "06"]
[TimeControl "180+1"]
[Date "2022.05.11"]
[WhiteClock "0:00:11"]
[BlackClock "0:00:15"]

1. e4 {[%clk 0:03:00]}  c5 {[%clk 0:02:59]} 2. Nf3 {[%clk 0:02:59]}  Nc6 {[%clk 0:03:00]} 3. d4 {[%clk 0:02:58]}  cxd4 {[%clk 0:03:00]} 4. Nxd4 {[%clk 0:02:58]}  Nf6 {[%clk 0:03:01]} 5. Nc3 {[%clk 0:02:58]}  e5 {[%clk 0:03:01]} 6. Ndb5 {[%clk 0:02:58]}  h6 {[%clk 0:03:02]} 7. Nd5 {[%clk 0:02:42]}  Nxd5 {[%clk 0:03:00]} 8. exd5 {[%clk 0:02:42]}  a6 {[%clk 0:03:01]} 9. Nc3 {[%clk 0:02:22]}  Nd4 {[%clk 0:02:57]} 10. Be3 {[%clk 0:02:19]}  Nf5 {[%clk 0:02:57]} 11. Bd2 {[%clk 0:01:59]}  d6 {[%clk 0:02:51]} 12. Bd3 {[%clk 0:01:58]}  g6 {[%clk 0:02:41]} 13. O-O {[%clk 0:01:57]}  Bg7 {[%clk 0:02:41]} 14. f4 {[%clk 0:01:38]}  O-O {[%clk 0:02:09]} 15. Kh1 {[%clk 0:01:34]}  Re8 {[%clk 0:01:58]} 16. fxe5 {[%clk 0:01:32]}  Rxe5 {[%clk 0:01:58]} 17. Bf4 {[%clk 0:01:28]}  Ne3 {[%clk 0:01:41]} 18. Qf3 {[%clk 0:00:41]}  Bg4 {[%clk 0:01:00]} 19. Qg3 {[%clk 0:00:35]}  Nxf1 {[%clk 0:00:43]} 20. Rxf1 {[%clk 0:00:34]}  h5 {[%clk 0:00:37]} 21. Bxe5 {[%clk 0:00:30]}  Bxe5 {[%clk 0:00:36]} 22. Qf2 {[%clk 0:00:30]}  Qe7 {[%clk 0:00:29]} 23. Ne4 {[%clk 0:00:29]}  Kg7 {[%clk 0:00:24]} 24. c3 {[%clk 0:00:20]}  Rf8 {[%clk 0:00:22]} 25. Ng3 {[%clk 0:00:16]}  Qh4 {[%clk 0:00:18]} 26. Nf5+ {[%clk 0:00:15]}  Bxf5 {[%clk 0:00:18]} 27. Qxh4 {[%clk 0:00:14]}  Bxd3 {[%clk 0:00:18]} 28. Re1 {[%clk 0:00:14]}  Bf5 {[%clk 0:00:18]} 29. Qe7 {[%clk 0:00:13]}  b5 {[%clk 0:00:14]} 30. Rxe5 {[%clk 0:00:12]}  dxe5 {[%clk 0:00:14]} 31. Qxe5+ {[%clk 0:00:12]}  Kg8 {[%clk 0:00:15]} 32. d6 {[%clk 0:00:12]}  Rd8 {[%clk 0:00:14]} 33. Qe7 {[%clk 0:00:12]}  Rd7 {[%clk 0:00:15]} 34. Qe8+ {[%clk 0:00:12]}  Kg7 {[%clk 0:00:15]} 35. Qb8 {[%clk 0:00:12]}  Kf6 {[%clk 0:00:14]} 36. Qb6 {[%clk 0:00:12]}  Ke6 {[%clk 0:00:15]} 37. Qxa6 {[%clk 0:00:11]}  Rxd6 {[%clk 0:00:16]} 38. Qxb5 {[%clk 0:00:11]}  Rd1+ {[%clk 0:00:15]} 0-1


[Site "https://www.chess.com"]

[Event "Titled Tuesday Blitz May 10 Early 2022"]
[White "Legenia, Artem"]
[Black "Martin Duque, Jesus"]
[WhiteFideId "14136945"]
[BlackFideId "2208954"]
[WhiteElo "1936"]
[BlackElo "2243"]
[Result "1-0"]
[Round "06"]
[TimeControl "180+1"]
[Date "2022.05.11"]
[WhiteClock "0:01:36"]
[BlackClock "0:01:03"]

1. d4 {[%clk 0:03:00]}  Nf6 {[%clk 0:02:17]} 2. Nf3 {[%clk 0:03:00]}  b6 {[%clk 0:02:17]} 3. Bf4 {[%clk 0:03:00]}  Bb7 {[%clk 0:02:17]} 4. e3 {[%clk 0:03:01]}  g6 {[%clk 0:02:16]} 5. h3 {[%clk 0:03:01]}  Bg7 {[%clk 0:02:12]} 6. Bd3 {[%clk 0:03:01]}  O-O {[%clk 0:02:12]} 7. O-O {[%clk 0:03:01]}  d6 {[%clk 0:02:12]} 8. Nbd2 {[%clk 0:03:01]}  Nbd7 {[%clk 0:02:11]} 9. c3 {[%clk 0:03:00]}  Re8 {[%clk 0:02:10]} 10. Bh2 {[%clk 0:03:00]}  e5 {[%clk 0:02:10]} 11. dxe5 {[%clk 0:03:00]}  dxe5 {[%clk 0:02:10]} 12. Bb5 {[%clk 0:02:50]}  Qe7 {[%clk 0:02:06]} 13. Qa4 {[%clk 0:02:44]}  Nc5 {[%clk 0:02:05]} 14. Qa3 {[%clk 0:02:40]}  c6 {[%clk 0:01:48]} 15. Bc4 {[%clk 0:02:35]}  Nd5 {[%clk 0:01:47]} 16. Nb3 {[%clk 0:02:15]}  Ne4 {[%clk 0:01:46]} 17. Qxe7 {[%clk 0:02:13]}  Rxe7 {[%clk 0:01:47]} 18. Rad1 {[%clk 0:02:08]}  Rd8 {[%clk 0:01:47]} 19. a4 {[%clk 0:01:58]}  a5 {[%clk 0:01:47]} 20. Nfd2 {[%clk 0:01:50]}  Nd6 {[%clk 0:01:41]} 21. Be2 {[%clk 0:01:48]}  Kf8 {[%clk 0:01:32]} 22. c4 {[%clk 0:01:44]}  Nb4 {[%clk 0:01:28]} 23. c5 {[%clk 0:01:45]}  Nc8 {[%clk 0:01:28]} 24. Ne4 {[%clk 0:01:38]}  Ke8 {[%clk 0:01:18]} 25. cxb6 {[%clk 0:01:36]}  f5 {[%clk 0:01:03]} 26. Nec5 {[%clk 0:01:36]} 1-0


[Site "https://www.chess.com"]

[Event "Titled Tuesday Blitz May 10 Early 2022"]
[White "Maevsky, Nikolay"]
[Black "Matinian, Nikita"]
[WhiteFideId "4198220"]
[BlackFideId "24129100"]
[WhiteElo "2149"]
[BlackElo "2422"]
[Result "1-0"]
[Round "06"]
[TimeControl "180+1"]
[Date "2022.05.11"]
[WhiteClock "0:01:12"]
[BlackClock "0:00:53"]

1. d4 {[%clk 0:03:00]}  Nf6 {[%clk 0:02:59]} 2. Nf3 {[%clk 0:03:00]}  g6 {[%clk 0:03:00]} 3. c4 {[%clk 0:02:59]}  Bg7 {[%clk 0:03:00]} 4. Nc3 {[%clk 0:03:00]}  O-O {[%clk 0:03:01]} 5. e4 {[%clk 0:03:00]}  d6 {[%clk 0:03:01]} 6. Be2 {[%clk 0:03:00]}  e5 {[%clk 0:03:02]} 7. d5 {[%clk 0:03:01]}  a5 {[%clk 0:03:02]} 8. Bg5 {[%clk 0:03:01]}  h6 {[%clk 0:03:00]} 9. Be3 {[%clk 0:03:01]}  Ng4 {[%clk 0:03:00]} 10. Bd2 {[%clk 0:03:01]}  f5 {[%clk 0:03:01]} 11. h3 {[%clk 0:03:02]}  Nf6 {[%clk 0:02:59]} 12. exf5 {[%clk 0:03:02]}  gxf5 {[%clk 0:02:59]} 13. Qc1 {[%clk 0:03:03]}  f4 {[%clk 0:02:59]} 14. g3 {[%clk 0:03:00]}  e4 {[%clk 0:02:59]} 15. Nh4 {[%clk 0:03:00]}  e3 {[%clk 0:02:59]} 16. fxe3 {[%clk 0:03:00]}  fxg3 {[%clk 0:02:57]} 17. Ng6 {[%clk 0:03:00]}  Nbd7 {[%clk 0:02:45]} 18. Nxf8 {[%clk 0:02:56]}  Nxf8 {[%clk 0:02:29]} 19. Qc2 {[%clk 0:02:52]}  N6d7 {[%clk 0:02:11]} 20. O-O-O {[%clk 0:02:45]}  Ne5 {[%clk 0:02:11]} 21. Rdg1 {[%clk 0:02:31]}  Qh4 {[%clk 0:02:09]} 22. Qe4 {[%clk 0:02:22]}  Qf6 {[%clk 0:01:32]} 23. Rxg3 {[%clk 0:02:11]}  Bf5 {[%clk 0:01:32]} 24. Qg2 {[%clk 0:01:51]}  Nfg6 {[%clk 0:01:32]} 25. Rg1 {[%clk 0:01:44]}  Kh8 {[%clk 0:01:29]} 26. e4 {[%clk 0:01:40]}  Nh4 {[%clk 0:01:29]} 27. Qf2 {[%clk 0:01:28]}  Bh7 {[%clk 0:01:14]} 28. Qxf6 {[%clk 0:01:20]}  Bxf6 {[%clk 0:01:14]} 29. Bxh6 {[%clk 0:01:17]}  Nhg6 {[%clk 0:01:15]} 30. Bg5 {[%clk 0:01:14]}  Bg7 {[%clk 0:01:15]} 31. h4 {[%clk 0:01:14]}  Rf8 {[%clk 0:01:11]} 32. h5 {[%clk 0:01:12]}  Nh4 {[%clk 0:00:53]} 1-0


[Site "https://www.chess.com"]

[Event "Titled Tuesday Blitz May 10 Early 2022"]
[White "Maksimenko, Viktor"]
[Black "Stribuk, Artiom"]
[WhiteFideId "13710478"]
[BlackFideId "13515659"]
[WhiteElo "2269"]
[BlackElo "2259"]
[Result "0-1"]
[Round "06"]
[TimeControl "180+1"]
[Date "2022.05.11"]
[WhiteClock "0:00:11"]
[BlackClock "0:00:26"]

1. c4 {[%clk 0:03:00]}  g6 {[%clk 0:02:59]} 2. d4 {[%clk 0:02:54]}  Nf6 {[%clk 0:02:59]} 3. Nf3 {[%clk 0:02:55]}  c5 {[%clk 0:02:59]} 4. d5 {[%clk 0:02:54]}  b5 {[%clk 0:02:59]} 5. cxb5 {[%clk 0:02:55]}  a6 {[%clk 0:02:59]} 6. bxa6 {[%clk 0:02:55]}  Bg7 {[%clk 0:02:59]} 7. Nc3 {[%clk 0:02:56]}  O-O {[%clk 0:02:56]} 8. e4 {[%clk 0:02:54]}  Qa5 {[%clk 0:02:56]} 9. Bd2 {[%clk 0:02:50]}  Bxa6 {[%clk 0:02:56]} 10. Bxa6 {[%clk 0:02:46]}  Qxa6 {[%clk 0:02:57]} 11. Qe2 {[%clk 0:02:44]}  d6 {[%clk 0:02:57]} 12. Qxa6 {[%clk 0:02:36]}  Nxa6 {[%clk 0:02:58]} 13. Ke2 {[%clk 0:02:34]}  Nd7 {[%clk 0:02:56]} 14. Rhb1 {[%clk 0:02:11]}  Nb6 {[%clk 0:02:40]} 15. Nd1 {[%clk 0:01:56]}  f5 {[%clk 0:02:38]} 16. Ng5 {[%clk 0:01:29]}  fxe4 {[%clk 0:02:38]} 17. Ne6 {[%clk 0:01:29]}  Rfb8 {[%clk 0:02:37]} 18. Nxg7 {[%clk 0:01:24]}  Kxg7 {[%clk 0:02:38]} 19. Ne3 {[%clk 0:01:23]}  Nc7 {[%clk 0:02:37]} 20. b4 {[%clk 0:01:01]}  cxb4 {[%clk 0:02:04]} 21. Rxb4 {[%clk 0:01:01]}  Nbxd5 {[%clk 0:01:53]} 22. Rxe4 {[%clk 0:01:00]}  Rb2 {[%clk 0:01:49]} 23. Nxd5 {[%clk 0:00:53]}  Nxd5 {[%clk 0:01:48]} 24. Rd4 {[%clk 0:00:53]}  Raxa2 {[%clk 0:01:24]} 25. Rxa2 {[%clk 0:00:33]}  Nc3+ {[%clk 0:01:24]} 26. Kd3 {[%clk 0:00:33]}  Nxa2 {[%clk 0:01:25]} 27. Rc4 {[%clk 0:00:25]}  Kf7 {[%clk 0:01:19]} 28. Rh4 {[%clk 0:00:25]}  h5 {[%clk 0:01:19]} 29. Rf4+ {[%clk 0:00:24]}  Ke6 {[%clk 0:01:14]} 30. Re4+ {[%clk 0:00:23]}  Kd7 {[%clk 0:01:11]} 31. Ra4 {[%clk 0:00:24]}  e5 {[%clk 0:01:03]} 32. f3 {[%clk 0:00:20]}  Ke6 {[%clk 0:01:01]} 33. h4 {[%clk 0:00:14]}  Kd5 {[%clk 0:00:55]} 34. Ra5+ {[%clk 0:00:14]}  Kc6 {[%clk 0:00:52]} 35. Ra6+ {[%clk 0:00:12]}  Kc5 {[%clk 0:00:47]} 36. Ra5+ {[%clk 0:00:12]}  Kc6 {[%clk 0:00:47]} 37. Ra6+ {[%clk 0:00:12]}  Kd5 {[%clk 0:00:43]} 38. Ra5+ {[%clk 0:00:11]}  Ke6 {[%clk 0:00:44]} 39. Ra4 {[%clk 0:00:12]}  Kf7 {[%clk 0:00:30]} 40. Ra7+ {[%clk 0:00:12]}  Kf6 {[%clk 0:00:29]} 41. Bg5+ {[%clk 0:00:12]}  Ke6 {[%clk 0:00:29]} 42. Bd2 {[%clk 0:00:11]}  Nb4+ {[%clk 0:00:26]} 43. Kc3 {[%clk 0:00:11]}  Rc2+ {[%clk 0:00:26]} 0-1


[Site "https://www.chess.com"]

[Event "Titled Tuesday Blitz May 10 Early 2022"]
[White "Mammadzada, Gunay"]
[Black "Shyaamnikhil P"]
[WhiteFideId "13403729"]
[BlackFideId "5024218"]
[WhiteElo "2242"]
[BlackElo "2329"]
[Result "0-1"]
[Round "06"]
[TimeControl "180+1"]
[Date "2022.05.11"]
[WhiteClock "0:00:12"]
[BlackClock "0:00:35"]

1. Nf3 {[%clk 0:02:56]}  c5 {[%clk 0:02:58]} 2. e4 {[%clk 0:02:52]}  Nc6 {[%clk 0:02:58]} 3. d4 {[%clk 0:02:51]}  cxd4 {[%clk 0:02:58]} 4. Nxd4 {[%clk 0:02:52]}  Nf6 {[%clk 0:02:58]} 5. Nc3 {[%clk 0:02:52]}  e5 {[%clk 0:02:58]} 6. Ndb5 {[%clk 0:02:51]}  h6 {[%clk 0:02:56]} 7. Nd5 {[%clk 0:02:38]}  Nxd5 {[%clk 0:02:54]} 8. exd5 {[%clk 0:02:39]}  a6 {[%clk 0:02:54]} 9. dxc6 {[%clk 0:02:18]}  axb5 {[%clk 0:02:54]} 10. cxd7+ {[%clk 0:02:18]}  Bxd7 {[%clk 0:02:53]} 11. Bd3 {[%clk 0:02:02]}  Bc6 {[%clk 0:02:51]} 12. O-O {[%clk 0:02:02]}  Qd5 {[%clk 0:02:25]} 13. Qg4 {[%clk 0:01:48]}  h5 {[%clk 0:02:18]} 14. Qh3 {[%clk 0:01:44]}  e4 {[%clk 0:02:03]} 15. Re1 {[%clk 0:01:37]}  f5 {[%clk 0:02:02]} 16. f3 {[%clk 0:00:53]}  Bc5+ {[%clk 0:02:00]} 17. Kh1 {[%clk 0:00:52]}  O-O {[%clk 0:01:58]} 18. Be2 {[%clk 0:00:43]}  Rae8 {[%clk 0:01:31]} 19. Bf4 {[%clk 0:00:39]}  Qf7 {[%clk 0:01:16]} 20. a3 {[%clk 0:00:36]}  g6 {[%clk 0:00:52]} 21. Rad1 {[%clk 0:00:33]}  Re7 {[%clk 0:00:43]} 22. fxe4 {[%clk 0:00:29]}  Rxe4 {[%clk 0:00:42]} 23. Bd2 {[%clk 0:00:17]}  Bf2 {[%clk 0:00:35]} 24. Bf3 {[%clk 0:00:12]}  Bxe1 {[%clk 0:00:35]} 25. Bxe4 {[%clk 0:00:12]}  fxe4 {[%clk 0:00:35]} 0-1


[Site "https://www.chess.com"]

[Event "Titled Tuesday Blitz May 10 Early 2022"]
[White "Manukian, Artak"]
[Black "Hamley, Ryan"]
[WhiteFideId "13301373"]
[BlackFideId "30959497"]
[WhiteElo "2408"]
[BlackElo "2511"]
[Result "0-1"]
[Round "06"]
[TimeControl "180+1"]
[Date "2022.05.11"]
[WhiteClock "0:00:01"]
[BlackClock "0:00:55"]

1. e4 {[%clk 0:03:00]}  c6 {[%clk 0:02:51]} 2. d4 {[%clk 0:02:59]}  g6 {[%clk 0:02:49]} 3. Nc3 {[%clk 0:02:54]}  d5 {[%clk 0:02:49]} 4. exd5 {[%clk 0:02:50]}  cxd5 {[%clk 0:02:50]} 5. h3 {[%clk 0:02:48]}  Bg7 {[%clk 0:02:50]} 6. Nf3 {[%clk 0:02:47]}  Nc6 {[%clk 0:02:50]} 7. Bb5 {[%clk 0:02:33]}  Nf6 {[%clk 0:02:50]} 8. Bg5 {[%clk 0:02:31]}  O-O {[%clk 0:02:44]} 9. Qd2 {[%clk 0:02:30]}  Ne4 {[%clk 0:02:40]} 10. Nxe4 {[%clk 0:02:23]}  dxe4 {[%clk 0:02:39]} 11. Bxc6 {[%clk 0:02:19]}  bxc6 {[%clk 0:02:36]} 12. Ne5 {[%clk 0:02:15]}  f6 {[%clk 0:02:25]} 13. Nxc6 {[%clk 0:02:14]}  Qd6 {[%clk 0:02:23]} 14. Nxe7+ {[%clk 0:02:06]}  Qxe7 {[%clk 0:02:24]} 15. Be3 {[%clk 0:02:06]}  Ba6 {[%clk 0:02:21]} 16. O-O-O {[%clk 0:02:05]}  f5 {[%clk 0:02:17]} 17. g3 {[%clk 0:02:03]}  Rab8 {[%clk 0:02:16]} 18. Kb1 {[%clk 0:01:51]}  Rfd8 {[%clk 0:02:06]} 19. Qa5 {[%clk 0:01:38]}  Qb7 {[%clk 0:02:03]} 20. b3 {[%clk 0:01:35]}  Rd5 {[%clk 0:02:01]} 21. Qa3 {[%clk 0:01:28]}  Rbd8 {[%clk 0:01:59]} 22. Rhe1 {[%clk 0:00:47]}  Bxd4 {[%clk 0:01:49]} 23. Bxd4 {[%clk 0:00:41]}  Rxd4 {[%clk 0:01:49]} 24. Rxd4 {[%clk 0:00:42]}  Rxd4 {[%clk 0:01:49]} 25. f3 {[%clk 0:00:43]}  Kf7 {[%clk 0:01:34]} 26. Qc5 {[%clk 0:00:22]}  Qd7 {[%clk 0:01:29]} 27. fxe4 {[%clk 0:00:16]}  Rxe4 {[%clk 0:01:29]} 28. Rxe4 {[%clk 0:00:12]}  fxe4 {[%clk 0:01:29]} 29. Qf2+ {[%clk 0:00:13]}  Kg8 {[%clk 0:01:28]} 30. a4 {[%clk 0:00:10]}  Kg7 {[%clk 0:01:05]} 31. Qf4 {[%clk 0:00:07]}  Qe7 {[%clk 0:01:03]} 32. Qe3 {[%clk 0:00:06]}  Bc8 {[%clk 0:01:03]} 33. g4 {[%clk 0:00:06]}  a5 {[%clk 0:00:59]} 34. Kb2 {[%clk 0:00:06]}  Bb7 {[%clk 0:00:56]} 35. Kc3 {[%clk 0:00:01]}  Qb4+ {[%clk 0:00:55]} 0-1


[Site "https://www.chess.com"]

[Event "Titled Tuesday Blitz May 10 Early 2022"]
[White "Marin Ramirez, Gerardo"]
[Black "Pourkashiyan, Atousa"]
[WhiteFideId "3901068"]
[BlackFideId "12502014"]
[WhiteElo "1920"]
[BlackElo "2247"]
[Result "0-1"]
[Round "06"]
[TimeControl "180+1"]
[Date "2022.05.11"]
[WhiteClock "0:00:31"]
[BlackClock "0:00:35"]

1. d4 {[%clk 0:02:58]}  Nf6 {[%clk 0:02:08]} 2. Nf3 {[%clk 0:02:59]}  e6 {[%clk 0:02:08]} 3. g3 {[%clk 0:03:00]}  b6 {[%clk 0:02:08]} 4. Bg2 {[%clk 0:02:58]}  Bb7 {[%clk 0:02:09]} 5. O-O {[%clk 0:02:57]}  Be7 {[%clk 0:02:09]} 6. c4 {[%clk 0:02:56]}  O-O {[%clk 0:02:09]} 7. Nc3 {[%clk 0:02:57]}  Ne4 {[%clk 0:02:08]} 8. Qc2 {[%clk 0:02:53]}  f5 {[%clk 0:02:07]} 9. Nd2 {[%clk 0:02:47]}  d5 {[%clk 0:02:06]} 10. cxd5 {[%clk 0:02:46]}  exd5 {[%clk 0:02:06]} 11. Nf3 {[%clk 0:02:38]}  Nd7 {[%clk 0:02:05]} 12. Rd1 {[%clk 0:02:37]}  Ndf6 {[%clk 0:02:03]} 13. Bf4 {[%clk 0:02:35]}  Ng4 {[%clk 0:02:01]} 14. Rf1 {[%clk 0:02:31]}  c5 {[%clk 0:01:53]} 15. Ne5 {[%clk 0:02:27]}  cxd4 {[%clk 0:01:49]} 16. Nxe4 {[%clk 0:02:25]}  dxe4 {[%clk 0:01:49]} 17. Qb3+ {[%clk 0:02:24]}  Bd5 {[%clk 0:01:46]} 18. Qa4 {[%clk 0:02:17]}  Nxe5 {[%clk 0:01:45]} 19. Bxe5 {[%clk 0:02:17]}  d3 {[%clk 0:01:36]} 20. exd3 {[%clk 0:02:15]}  exd3 {[%clk 0:01:37]} 21. Rfd1 {[%clk 0:02:13]}  Bxg2 {[%clk 0:01:37]} 22. Kxg2 {[%clk 0:02:06]}  Qd5+ {[%clk 0:01:37]} 23. Kg1 {[%clk 0:01:53]}  Qxe5 {[%clk 0:01:36]} 24. Rxd3 {[%clk 0:01:52]}  Bc5 {[%clk 0:01:33]} 25. Rad1 {[%clk 0:01:46]}  Qxb2 {[%clk 0:01:31]} 26. Qf4 {[%clk 0:01:43]}  Qxa2 {[%clk 0:01:05]} 27. Rd7 {[%clk 0:01:42]}  Rf7 {[%clk 0:01:05]} 28. R7d2 {[%clk 0:01:34]}  Qe6 {[%clk 0:00:57]} 29. Qf3 {[%clk 0:01:30]}  Raf8 {[%clk 0:00:55]} 30. Re2 {[%clk 0:01:27]}  Qc4 {[%clk 0:00:49]} 31. Rde1 {[%clk 0:01:19]}  a5 {[%clk 0:00:48]} 32. h4 {[%clk 0:01:13]}  a4 {[%clk 0:00:48]} 33. h5 {[%clk 0:01:13]}  h6 {[%clk 0:00:48]} 34. Re6 {[%clk 0:00:54]}  a3 {[%clk 0:00:36]} 35. Re8 {[%clk 0:00:46]}  a2 {[%clk 0:00:35]} 36. Rxf8+ {[%clk 0:00:38]}  Rxf8 {[%clk 0:00:35]} 37. Qc6 {[%clk 0:00:32]}  Bxf2+ {[%clk 0:00:34]} 38. Kxf2 {[%clk 0:00:31]}  Qxc6 {[%clk 0:00:35]} 0-1


[Site "https://www.chess.com"]

[Event "Titled Tuesday Blitz May 10 Early 2022"]
[White "Martin Carmona, Gaston Manuel"]
[Black "Gatterer, Florian"]
[WhiteFideId "22284567"]
[BlackFideId "811688"]
[WhiteElo "2162"]
[BlackElo "2218"]
[Result "1-0"]
[Round "06"]
[TimeControl "180+1"]
[Date "2022.05.11"]
[WhiteClock "0:00:42"]
[BlackClock "0:00:02"]

1. e4 {[%clk 0:03:00]}  c5 {[%clk 0:02:56]} 2. Nf3 {[%clk 0:03:00]}  Nc6 {[%clk 0:02:52]} 3. d4 {[%clk 0:03:01]}  cxd4 {[%clk 0:02:51]} 4. Nxd4 {[%clk 0:03:02]}  Nf6 {[%clk 0:02:51]} 5. Nc3 {[%clk 0:03:02]}  e5 {[%clk 0:02:50]} 6. Ndb5 {[%clk 0:03:03]}  d6 {[%clk 0:02:50]} 7. Bg5 {[%clk 0:03:04]}  a6 {[%clk 0:02:49]} 8. Na3 {[%clk 0:03:04]}  b5 {[%clk 0:02:48]} 9. Nd5 {[%clk 0:03:05]}  Be7 {[%clk 0:02:48]} 10. Bxf6 {[%clk 0:03:05]}  Bxf6 {[%clk 0:02:47]} 11. c4 {[%clk 0:03:06]}  b4 {[%clk 0:02:44]} 12. Nc2 {[%clk 0:03:06]}  O-O {[%clk 0:02:42]} 13. g3 {[%clk 0:03:07]}  Bg5 {[%clk 0:02:41]} 14. Bg2 {[%clk 0:03:07]}  a5 {[%clk 0:02:31]} 15. O-O {[%clk 0:03:07]}  Be6 {[%clk 0:02:23]} 16. Qd3 {[%clk 0:03:03]}  Bxd5 {[%clk 0:02:04]} 17. Qxd5 {[%clk 0:03:02]}  Qc7 {[%clk 0:02:00]} 18. f4 {[%clk 0:03:00]}  Bf6 {[%clk 0:01:57]} 19. f5 {[%clk 0:02:53]}  Nd4 {[%clk 0:01:47]} 20. Nxd4 {[%clk 0:02:31]}  exd4 {[%clk 0:01:46]} 21. Rac1 {[%clk 0:02:31]}  Rac8 {[%clk 0:01:22]} 22. Rfd1 {[%clk 0:02:22]}  Qc5 {[%clk 0:01:20]} 23. h4 {[%clk 0:02:18]}  Be5 {[%clk 0:01:08]} 24. Kf2 {[%clk 0:02:16]}  a4 {[%clk 0:00:44]} 25. Bf1 {[%clk 0:02:08]}  Rc7 {[%clk 0:00:43]} 26. Bd3 {[%clk 0:02:07]}  Kh8 {[%clk 0:00:39]} 27. Kf3 {[%clk 0:02:07]}  Rfc8 {[%clk 0:00:37]} 28. g4 {[%clk 0:02:07]}  Qxd5 {[%clk 0:00:37]} 29. exd5 {[%clk 0:02:08]}  f6 {[%clk 0:00:25]} 30. Re1 {[%clk 0:02:07]}  Rc5 {[%clk 0:00:24]} 31. Ke4 {[%clk 0:01:46]}  Kg8 {[%clk 0:00:23]} 32. Bf1 {[%clk 0:01:41]}  R8c7 {[%clk 0:00:22]} 33. Kd3 {[%clk 0:01:41]}  Re7 {[%clk 0:00:20]} 34. Re4 {[%clk 0:01:39]}  Kf8 {[%clk 0:00:20]} 35. Rce1 {[%clk 0:01:36]}  Rec7 {[%clk 0:00:20]} 36. Rc1 {[%clk 0:01:34]}  Re7 {[%clk 0:00:19]} 37. g5 {[%clk 0:01:34]}  Rcc7 {[%clk 0:00:15]} 38. Be2 {[%clk 0:01:31]}  h6 {[%clk 0:00:15]} 39. Rg1 {[%clk 0:01:21]}  Bh2 {[%clk 0:00:14]} 40. Rg2 {[%clk 0:01:16]}  Rxe4 {[%clk 0:00:14]} 41. Kxe4 {[%clk 0:01:17]}  Re7+ {[%clk 0:00:13]} 42. Kd3 {[%clk 0:01:11]}  Be5 {[%clk 0:00:11]} 43. gxh6 {[%clk 0:01:09]}  gxh6 {[%clk 0:00:10]} 44. Bf3 {[%clk 0:01:09]}  a3 {[%clk 0:00:08]} 45. bxa3 {[%clk 0:00:55]}  bxa3 {[%clk 0:00:08]} 46. Rg6 {[%clk 0:00:56]}  Rb7 {[%clk 0:00:07]} 47. Rxh6 {[%clk 0:00:56]}  Rb2 {[%clk 0:00:07]} 48. c5 {[%clk 0:00:56]}  dxc5 {[%clk 0:00:06]} 49. d6 {[%clk 0:00:54]}  Bxd6 {[%clk 0:00:05]} 50. Rxf6+ {[%clk 0:00:54]}  Ke7 {[%clk 0:00:06]} 51. Re6+ {[%clk 0:00:54]}  Kd7 {[%clk 0:00:06]} 52. Re2 {[%clk 0:00:52]}  c4+ {[%clk 0:00:04]} 53. Kxd4 {[%clk 0:00:47]}  c3 {[%clk 0:00:03]} 54. Kxc3 {[%clk 0:00:46]}  Rxe2 {[%clk 0:00:02]} 55. Bxe2 {[%clk 0:00:46]}  Be7 {[%clk 0:00:03]} 56. h5 {[%clk 0:00:45]}  Bg5 {[%clk 0:00:02]} 57. Kd4 {[%clk 0:00:44]}  Kd6 {[%clk 0:00:02]} 58. Ke4 {[%clk 0:00:43]}  Ke7 {[%clk 0:00:02]} 59. Ke5 {[%clk 0:00:42]}  Bf6+ {[%clk 0:00:02]} 60. Kf4 {[%clk 0:00:42]} 1-0


[Site "https://www.chess.com"]